fUSD/lending_fUSD_20240820
["ID","MTS","AMOUNT","RATE_DAILY","PERIOD"]
[335389747,1724178645200,-500.0,0.00011999,2]
[335389749,1724178645209,-500.0,0.00011999,2]
[335389751,1724178645219,-562.89163064,0.00011999,2]
[335389753,1724178645228,-1281.67,0.00011999,2]
[335389755,1724178645237,-510.26529343,0.00011999,2]
[335389757,1724178645246,-501.03535154,0.00011999,2]
[335389759,1724178645255,-1280.9,0.00011999,2]
[335389761,1724178645265,-500.0,0.00011999,2]
[335389763,1724178645276,-500.0,0.00011999,2]
[335389765,1724178645285,-151.0,0.00011999,2]
[335389767,1724178645295,-500.0,0.00011999,2]
[335389769,1724178645304,-1150.73,0.00011999,2]
[335389771,1724178645315,-502.83238299,0.00011999,2]
[335389773,1724178645324,-186.54841675,0.00011999,2]
[335389775,1724178645334,-502.1740799,0.00011999,2]
[335389777,1724178645344,-331.828275,0.00011999,2]
[335389779,1724178645353,-331.828275,0.00011999,2]
[335389781,1724178645363,-151.0,0.00011999,2]
[335389783,1724178645372,-151.0,0.00011999,2]
[335389785,1724178645381,-151.0,0.00011999,2]
[335389787,1724178645390,-508.33384972,0.00011999,2]
[335389790,1724178645399,-220.930582,0.00011999,2]
[335389793,1724178645409,-220.930582,0.00011999,2]
[335389795,1724178645418,-151.0,0.00011999,2]
[335389798,1724178645427,-151.0,0.00011999,2]
[335389800,1724178645436,-419.279605,0.00011999,2]
[335389801,1724178645445,-419.279605,0.00011999,2]
[335389803,1724178645454,-165.071415,0.00011999,2]
[335389805,1724178645463,-165.071415,0.00011999,2]
[335389807,1724178645472,-500.0,0.00011999,2]
[335389809,1724178645481,-500.0,0.00011999,2]
[335389811,1724178645490,-151.0,0.00011999,2]
[335389813,1724178645500,-47.57518038,0.00011999,2]
[335389817,1724178645512,-359.92966962,0.00011999,2]
[335389820,1724178645522,-407.50485,0.00011999,2]
[335389823,1724178645531,-151.0,0.00011999,2]
[335389825,1724178645540,-151.0,0.00011999,2]
[335389827,1724178645551,-155.340188,0.00011999,2]
[335389830,1724178645560,-151.0,0.00011999,2]
[335389832,1724178645570,-124.22529238,0.00011999,2]
[335389836,1724178645581,-31.11489562,0.00011999,2]
[335389839,1724178645590,-513.776151,0.00011999,2]
[335389842,1724178645599,-151.0,0.00011999,2]
[335389845,1724178645608,-513.776151,0.00011999,2]
[335389847,1724178645617,-151.0,0.00011999,2]
[335389849,1724178645626,-25.23536438,0.00011999,2]
[335389851,1724178645637,-247.45279562,0.00011999,2]
[335389853,1724178645646,-191.063225,0.00011999,2]
[335389855,1724178645655,-191.063225,0.00011999,2]
[335389857,1724178645663,-21.75877683,0.00011999,2]
[335389859,1724178645674,-181.98272517,0.00011999,2]
[335389861,1724178645683,-500.0,0.00011999,2]
[335389863,1724178645693,-500.0,0.00011999,2]
[335389865,1724178645702,-500.0,0.00011999,2]
[335389867,1724178645711,-500.0,0.00011999,2]
[335389869,1724178645719,-334.070489,0.00011999,2]
[335389871,1724178645728,-334.070489,0.00011999,2]
[335389873,1724178645738,-956.724277,0.00011999,2]
[335389875,1724178645747,-956.724277,0.00011999,2]
[335389877,1724178645756,-435.95315931,0.00011999,2]
[335389879,1724178645766,-500.0,0.00011999,2]
[335389881,1724178645775,-500.0,0.00011999,2]
[335389883,1724178645784,-500.0,0.00011999,2]
[335389885,1724178645793,-500.0,0.00011999,2]
[335389886,1724178645802,-535.57025077,0.00011999,2]
[335389889,1724178645812,-500.0,0.00011999,2]
[335389891,1724178645821,-3196.45348844,0.00012,2]
[335389892,1724178645830,-151.0,0.00012,2]
[335389894,1724178645840,-151.0,0.00012,2]
[335389896,1724178645849,-151.0,0.00012,2]
[335389898,1724178645859,-151.0,0.00012,2]
[335389900,1724178645868,-151.0,0.00012,2]
[335389902,1724178645878,-151.0,0.00012,2]
[335389904,1724178645887,-151.0,0.00012,2]
[335389906,1724178645897,-151.0,0.00012,2]
[335389908,1724178645906,-388.618688,0.00012,2]
[335389910,1724178645915,-151.0,0.00012,2]
[335389912,1724178645925,-388.618688,0.00012,2]
[335389914,1724178645934,-235.033329,0.00012,2]
[335389917,1724178645943,-235.033329,0.00012,2]
[335389918,1724178645952,-151.0,0.00012,2]
[335389920,1724178645961,-218.979717,0.00012,2]
[335389922,1724178645971,-151.0,0.00012,2]
[335389925,1724178645980,-151.0,0.00012,2]
[335389927,1724178645989,-151.0,0.00012,2]
[335389928,1724178646000,-151.0,0.00012,2]
[335389931,1724178646010,-151.0,0.00012,2]
[335389933,1724178646020,-151.0,0.00012,2]
[335389935,1724178646029,-151.0,0.00012,2]
[335389937,1724178646038,-190.01,0.00012,2]
[335389938,1724178646049,-190.01,0.00012,2]
[335389939,1724178646058,-190.01,0.00012,2]
[335389940,1724178646067,-190.01,0.00012,2]
[335389941,1724178646076,-190.01,0.00012,2]
[335389942,1724178646085,-190.01,0.00012,2]
[335389943,1724178646094,-190.01,0.00012,2]
[335389944,1724178646103,-190.01,0.00012,2]
[335389945,1724178646113,-190.01,0.00012,2]
[335389946,1724178646122,-4811.35179823,0.00012012,2]
[335389948,1724178646134,-10877.31968114,0.00012012,2]
[335389950,1724178646145,-1201.87353666,0.00012012,2]
[335389952,1724178646155,-370.19267968,0.00012012,2]
[335389955,1724178646166,-1296.89510143,0.00012012,2]
[335389957,1724178646176,-407.50485,0.00012012,2]
[335389959,1724178646185,-407.50485,0.00012012,2]
[335389961,1724178646194,-151.0,0.00012012,2]
[335389963,1724178646202,-151.0,0.00012012,2]
[335389965,1724178646212,-155.340188,0.00012012,2]
[335389966,1724178646221,-151.0,0.00012012,2]
[335389968,1724178646230,-155.340188,0.00012012,2]
[335389971,1724178646240,-513.776151,0.00012012,2]
[335389972,1724178646249,-151.0,0.00012012,2]
[335389975,1724178646259,-513.776151,0.00012012,2]
[335389977,1724178646271,-151.0,0.00012012,2]
[335389979,1724178646280,-191.063225,0.00012012,2]
[335389981,1724178646289,-191.063225,0.00012012,2]
[335389983,1724178646299,-334.070489,0.00012012,2]
[335389985,1724178646309,-334.070489,0.00012012,2]
[335389987,1724178646318,-956.724277,0.00012012,2]
[335389988,1724178646327,-956.724277,0.00012012,2]
[335389990,1724178646336,-151.0,0.00012012,2]
[335389992,1724178646347,-585.51,0.00012025,2]
[335389994,1724178646356,-2479.939,0.00012025,2]
[335389996,1724178646365,-224.467,0.00012025,2]
[335389998,1724178646375,-556.0,0.00012025,2]
[335390000,1724178646384,-719.279,0.00012025,2]
[335390002,1724178646394,-551.0,0.00012025,2]
[335390004,1724178646402,-1580.5,0.00012026,2]
[335390006,1724178646412,-151.0,0.00012088,2]
[335390008,1724178646421,-151.0,0.00012088,2]
[335390010,1724178646430,-151.0,0.00012088,2]
[335390012,1724178646439,-151.0,0.00012088,2]
[335390013,1724178646448,-151.0,0.00012088,2]
[335390015,1724178646457,-151.0,0.00012088,2]
[335390017,1724178646467,-151.0,0.00012088,2]
[335390019,1724178646476,-388.618688,0.00012088,2]
[335390021,1724178646486,-151.0,0.00012088,2]
[335390023,1724178646495,-388.618688,0.00012088,2]
[335390025,1724178646505,-235.033329,0.00012088,2]
[335390027,1724178646514,-235.033329,0.00012088,2]
[335390029,1724178646524,-151.0,0.00012088,2]
[335390031,1724178646533,-151.0,0.00012088,2]
[335390033,1724178646542,-151.0,0.00012088,2]
[335390035,1724178646552,-151.0,0.00012088,2]
[335390037,1724178646561,-151.0,0.00012088,2]
[335390039,1724178646571,-151.0,0.00012088,2]
[335390041,1724178646580,-151.0,0.00012088,2]
[335390043,1724178646590,-331.828275,0.00012088,2]
[335390045,1724178646599,-331.828275,0.00012088,2]
[335390047,1724178646608,-281.212995,0.00012088,2]
[335390049,1724178646617,-161.153664,0.00012088,2]
[335390051,1724178646626,-151.864602,0.00012088,2]
[335390053,1724178646635,-220.930582,0.00012088,2]
[335390055,1724178646645,-220.930582,0.00012088,2]
[335390057,1724178646654,-151.0,0.00012088,2]
[335390059,1724178646663,-151.890313,0.00012088,2]
[335390061,1724178646672,-419.279605,0.00012088,2]
[335390063,1724178646682,-419.279605,0.00012088,2]
[335390065,1724178646693,-151.0,0.00012149,2]
[335390067,1724178646703,-165.071415,0.00012149,2]
[335390068,1724178646711,-165.071415,0.00012149,2]
[335390070,1724178646721,-151.0,0.00012149,2]
[335390072,1724178646730,-1165.0,0.00012149,2]
[335390074,1724178646739,-3319.0,0.00012149,2]
[335390076,1724178646748,-764.0,0.00012149,2]
[335390078,1724178646757,-6765.22477824,0.0001238,2]
[335390080,1724178646769,-562.41626868,0.0001238,2]
[335390082,1724178646780,-704.09202264,0.0001238,2]
[335390084,1724178646791,-302.1204009,0.0001238,2]
[335390087,1724178646803,-1286.6550992,0.0001238,2]
[335390089,1724178646819,-190.01,0.00012,2]
[335390091,1724178646828,-5781.89,0.0001238,2]
[335390109,1724178646997,-155.0,0.00011127,2]
[335390111,1724178647007,-12513.372979,0.00011829,2]
[335390113,1724178647016,-151.0,0.00012,2]
[335390115,1724178647025,-190.01,0.00012,2]
[335390117,1724178647035,-190.01,0.00012,2]
[335390119,1724178647044,-190.01,0.00012,2]
[335390120,1724178647056,-190.01,0.00012,2]
[335390122,1724178647067,-190.01,0.00012,2]
[335390124,1724178647076,-190.01,0.00012,2]
[335390126,1724178647085,-190.01,0.00012,2]
[335390128,1724178647094,-190.01,0.00012,2]
[335390130,1724178647103,-190.01,0.00012,2]
[335390132,1724178647113,-190.01,0.00012,2]
[335390134,1724178647122,-151.0,0.00012012,2]
[335390136,1724178647131,-639.798,0.00012149,2]
[335390138,1724178647140,-14098.54523286,0.0001238,2]
[335390140,1724178647151,-334.070489,0.0001238,2]
[335390142,1724178647160,-334.070489,0.0001238,2]
[335390144,1724178647169,-956.724277,0.0001238,2]
[335390146,1724178647178,-956.724277,0.0001238,2]
[335390148,1724178647188,-151.0,0.0001238,2]
[335390150,1724178647197,-151.0,0.0001238,2]
[335390152,1724178647205,-1500.0,0.00012405,2]
[335390154,1724178647215,-151.0,0.00012405,2]
[335390156,1724178647224,-220.930582,0.00012405,2]
[335390158,1724178647232,-220.930582,0.00012405,2]
[335390160,1724178647242,-151.0,0.00012405,2]
[335390162,1724178647251,-325.58,0.00012705,2]
[335390164,1724178647261,-200.0,0.00012745,2]
[335390166,1724178647273,-224.0,0.0001281,2]
[335390168,1724178647282,-861.06838784,0.00012884,2]
[335390170,1724178647291,-369.67,0.000129,2]
[335390172,1724178647302,-1005.0,0.000129,2]
[335390174,1724178647311,-316.0876158,0.00012968,2]
[335390176,1724178647320,-331.828275,0.00013,2]
[335390178,1724178647330,-331.828275,0.00013,2]
[335390180,1724178647340,-185.5507364,0.00013,2]
[335390182,1724178647349,-2504.38348333,0.00013001,2]
[335390184,1724178647358,-151.0,0.00013001,2]
[335390186,1724178647367,-665.7637336,0.00013004,2]
[335390188,1724178647376,-150.0,0.000131,2]
[335390190,1724178647385,-205.0,0.0001311,2]
[335390192,1724178647394,-6188.93940913,0.00013124,2]
[335390194,1724178647406,-4371.77553368,0.00013124,2]
[335390196,1724178647418,-7996.91785433,0.00013124,2]
[335390198,1724178647428,-407.50485,0.00013124,2]
[335390200,1724178647437,-407.50485,0.00013124,2]
[335390202,1724178647446,-151.0,0.00013124,2]
[335390204,1724178647456,-151.0,0.00013124,2]
[335390206,1724178647466,-155.340188,0.00013124,2]
[335390208,1724178647476,-151.0,0.00013124,2]
[335390210,1724178647485,-155.340188,0.00013124,2]
[335390212,1724178647495,-513.776151,0.00013124,2]
[335390214,1724178647504,-151.0,0.00013124,2]
[335390216,1724178647513,-513.776151,0.00013124,2]
[335390218,1724178647522,-151.0,0.00013124,2]
[335390220,1724178647531,-191.063225,0.00013124,2]
[335390222,1724178647540,-191.063225,0.00013124,2]
[335390223,1724178647550,-419.279605,0.00013176,2]
[335390225,1724178647559,-419.279605,0.00013176,2]
[335390227,1724178647568,-150.0,0.0001321,2]
[335390229,1724178647577,-150.0,0.0001321,2]
[335390231,1724178647586,-150.0,0.0001321,2]
[335390233,1724178647595,-150.0,0.0001321,2]
[335390235,1724178647604,-150.0,0.0001321,2]
[335390237,1724178647614,-150.33,0.0001321,2]
[335390239,1724178647623,-243.54,0.00013257,2]
[335390241,1724178647631,-205.0,0.0001327,2]
[335390243,1724178647640,-301.617555,0.00013276,2]
[335390245,1724178647650,-151.0,0.00013276,2]
[335390247,1724178647659,-151.0,0.00013276,2]
[335390249,1724178647669,-151.0,0.00013276,2]
[335390251,1724178647678,-151.0,0.00013276,2]
[335390253,1724178647687,-151.0,0.00013276,2]
[335390255,1724178647696,-388.618688,0.00013276,2]
[335390257,1724178647705,-151.0,0.00013276,2]
[335390258,1724178647714,-388.618688,0.00013276,2]
[335390260,1724178647723,-235.033329,0.00013276,2]
[335390262,1724178647732,-235.033329,0.00013276,2]
[335390264,1724178647741,-151.0,0.00013276,2]
[335390266,1724178647750,-151.0,0.00013276,2]
[335390268,1724178647759,-151.0,0.00013276,2]
[335390270,1724178647769,-260.317799,0.00013276,2]
[335390272,1724178647778,-151.0,0.00013276,2]
[335390274,1724178647787,-151.0,0.00013276,2]
[335390276,1724178647797,-151.0,0.00013276,2]
[335390278,1724178647806,-331.828275,0.00013276,2]
[335390280,1724178647815,-331.828275,0.00013276,2]
[335390282,1724178647824,-220.930582,0.00013276,2]
[335390284,1724178647833,-220.930582,0.00013276,2]
[335390286,1724178647843,-151.0,0.00013276,2]
[335390288,1724178647852,-165.071415,0.00013276,2]
[335390290,1724178647861,-165.071415,0.00013276,2]
[335390292,1724178647872,-64.41180714,0.00013276,2]
[335390295,1724178647884,-86.58819286,0.00013276,2]
[335390297,1724178647893,-334.070489,0.00013276,2]
[335390299,1724178647903,-334.070489,0.00013276,2]
[335390312,1724178648056,-884.10348414,0.00013276,2]
[335390313,1724178648069,-72.62079286,0.00013276,2]
[335390314,1724178648079,-847.48988626,0.00013276,2]
[335390315,1724178648090,-109.23439074,0.00013276,2]
[335390317,1724178648100,-150.39,0.00013287,2]
[335390318,1724178648110,-150.0,0.00013287,2]
[335390320,1724178648119,-150.0,0.00013287,2]
[335390322,1724178648128,-150.189748,0.000133,4]
[335390324,1724178648138,-500.0,0.00013332,2]
[335390326,1724178648146,-500.0,0.00013332,2]
[335390328,1724178648156,-520.84519912,0.00013332,2]
[335390330,1724178648166,-151.0,0.00013335,2]
[335390332,1724178648176,-151.0,0.00013335,2]
[335390334,1724178648185,-151.0,0.00013335,2]
[335390336,1724178648195,-503.53114845,0.00013335,2]
[335390338,1724178648206,-296.46885155,0.00013335,2]
[335390340,1724178648216,-615.5836,0.0001339,2]
[335390342,1724178648226,-205.0,0.0001343,2]
[335390344,1724178648235,-459.35375845,0.0001351,2]
[335390347,1724178648246,-1145.13071191,0.0001351,2]
[335390349,1724178648256,-151.0,0.0001351,2]
[335390351,1724178648267,-500.0,0.00013568,2]
[335390352,1724178648277,-205.0,0.0001359,2]
[335390354,1724178648287,-150.0,0.000136,2]
[335390357,1724178648297,-122.20783309,0.000136,2]
[335390359,1724178648310,-881.79216691,0.000136,2]
[335390361,1724178648321,-353.0,0.0001363,2]
[335390363,1724178648330,-2753.12489291,0.00013692,2]
[335390365,1724178648343,-800.71748181,0.00013692,2]
[335390367,1724178648353,-274.070958,0.00013692,2]
[335390369,1724178648363,-151.0,0.00013692,2]
[335390371,1724178648372,-151.0,0.00013692,2]
[335390373,1724178648382,-151.0,0.00013692,2]
[335390375,1724178648391,-151.0,0.00013692,2]
[335390377,1724178648401,-151.0,0.00013692,2]
[335390379,1724178648410,-151.0,0.00013692,2]
[335390381,1724178648420,-151.0,0.00013692,2]
[335390382,1724178648430,-151.0,0.00013699,2]
[335390384,1724178648439,-151.0,0.00013699,2]
[335390387,1724178648450,-151.0,0.00013699,2]
[335390389,1724178648460,-151.0,0.00013699,2]
[335390391,1724178648469,-217.093447,0.00013699,2]
[335390393,1724178648479,-254.84148,0.00013699,2]
[335390394,1724178648488,-254.84148,0.00013699,2]
[335390396,1724178648498,-254.84148,0.00013699,2]
[335390398,1724178648508,-254.84148,0.00013699,2]
[335390400,1724178648517,-254.84148,0.00013699,2]
[335390402,1724178648527,-254.84148,0.00013699,2]
[335390404,1724178648537,-254.84148,0.00013699,2]
[335390406,1724178648547,-254.84148,0.00013699,2]
[335390408,1724178648557,-500.0,0.00013699,2]
[335390410,1724178648566,-1354.61744623,0.00013699,2]
[335390413,1724178648578,-1396.38255377,0.00013699,2]
[335390415,1724178648588,-103.51752623,0.00013699,2]
[335390417,1724178648600,-96.48247377,0.00013699,2]
[335390419,1724178648610,-176.15,0.00013699,2]
[335390421,1724178648620,-151.0,0.00013699,2]
[335390423,1724178648631,-69.45764467,0.00013699,2]
[335390425,1724178648643,-338.04720533,0.00013699,2]
[335390427,1724178648652,-407.50485,0.00013699,2]
[335390429,1724178648662,-151.0,0.00013699,2]
[335390431,1724178648672,-151.0,0.00013699,2]
[335390433,1724178648682,-155.340188,0.00013699,2]
[335390435,1724178648691,-103.99835418,0.00013699,2]
[335390437,1724178648703,-47.00164582,0.00013699,2]
[335390439,1724178648713,-155.340188,0.00013699,2]
[335390441,1724178648723,-250.74592937,0.00013699,2]
[335390443,1724178648735,-263.03022163,0.00013699,2]
[335390445,1724178648745,-151.0,0.00013699,2]
[335390447,1724178648754,-155.59871832,0.00013699,2]
[335390450,1724178648770,-190.01,0.00012,2]
[335390452,1724178648779,-358.17743268,0.00013699,2]
[335390454,1724178648788,-151.0,0.00013699,2]
[335390456,1724178648797,-191.063225,0.00013699,2]
[335390458,1724178648807,-191.063225,0.00013699,2]
[335390460,1724178648816,-400.0,0.000137,5]
[335390462,1724178648826,-299.117883,0.000137,2]
[335390464,1724178648838,-700.882117,0.000137,2]
[335390466,1724178648847,-419.279605,0.0001371,2]
[335390468,1724178648856,-254.84148,0.0001371,2]
[335390470,1724178648866,-419.279605,0.0001371,2]
[335390472,1724178648877,-254.84148,0.0001371,2]
[335390474,1724178648887,-205.0,0.0001374,2]
[335390476,1724178648896,-154.18275969,0.0001379,2]
[335390478,1724178648906,-446.53919352,0.00013797,2]
[335390479,1724178648916,-162.3256557,0.00013798,2]
[335390482,1724178648927,-337.6743443,0.00013798,2]
[335390483,1724178648936,-500.0,0.00013798,2]
[335390485,1724178648947,-1136.09,0.00013798,2]
[335390487,1724178648957,-388.618688,0.00013798,2]
[335390489,1724178648967,-268.44356178,0.00013798,2]
[335390491,1724178648978,-120.17512622,0.00013798,2]
[335390493,1724178648988,-235.033329,0.00013798,2]
[335390495,1724178648998,-235.033329,0.00013798,2]
[335390497,1724178649007,-151.0,0.00013798,2]
[335390499,1724178649017,-151.0,0.00013798,2]
[335390501,1724178649026,-331.828275,0.00013798,2]
[335390503,1724178649036,-331.828275,0.00013798,2]
[335390505,1724178649045,-88.2581125,0.00013798,2]
[335390507,1724178649057,-1330.2618875,0.00013798,2]
[335390509,1724178649067,-220.930582,0.00013798,2]
[335390511,1724178649077,-220.930582,0.00013798,2]
[335390513,1724178649086,-500.0,0.00013798,2]
[335390515,1724178649096,-151.0,0.00013798,2]
[335390517,1724178649106,-500.0,0.00013798,2]
[335390519,1724178649116,-913.12,0.00013798,2]
[335390521,1724178649125,-165.071415,0.00013798,2]
[335390523,1724178649134,-165.071415,0.00013798,2]
[335390525,1724178649143,-266.81501,0.00013798,2]
[335390527,1724178649153,-500.0,0.00013798,2]
[335390528,1724178649162,-500.0,0.00013798,2]
[335390531,1724178649172,-500.0,0.00013798,2]
[335390533,1724178649182,-290.71160155,0.00013798,2]
[335390535,1724178649193,-655.25938841,0.00013798,2]
[335390537,1724178649204,-10.75328704,0.00013798,2]
[335390539,1724178649214,-956.724277,0.00013798,2]
[335390541,1724178649223,-500.0,0.00013799,2]
[335390543,1724178649232,-500.0,0.00013799,2]
[335390544,1724178649241,-500.0,0.00013799,2]
[335390546,1724178649251,-500.0,0.00013799,2]
[335390548,1724178649260,-500.0,0.00013799,2]
[335390550,1724178649274,-183.98233817,0.00013799,2]
[335390553,1724178649286,-316.01766183,0.00013799,2]
[335390555,1724178649295,-579.98233817,0.00013799,2]
[335390557,1724178649308,-701.68766183,0.00013799,2]
[335390559,1724178649318,-683.30009077,0.00013799,2]
[335390561,1724178649330,-597.59990923,0.00013799,2]
[335390563,1724178649341,-500.0,0.00013799,2]
[335390565,1724178649351,-500.0,0.00013799,2]
[335390567,1724178649361,-500.0,0.00013799,2]
[335390569,1724178649370,-112.40009077,0.00013799,2]
[335390571,1724178649382,-387.59990923,0.00013799,2]
[335390573,1724178649392,-706.65,0.00013799,2]
[335390575,1724178649402,-500.0,0.00013799,2]
[335390577,1724178649412,-500.0,0.00013799,2]
[335390579,1724178649423,-504.63954688,0.00013799,2]
[335390581,1724178649433,-508.59,0.00013799,2]
[335390583,1724178649443,-151.0,0.00013799,2]
[335390585,1724178649453,-1150.73,0.00013799,2]
[335390587,1724178649464,-151.0,0.00013799,2]
[335390589,1724178649474,-331.828275,0.00013799,2]
[335390591,1724178649485,-331.828275,0.00013799,2]
[335390593,1724178649495,-500.0,0.00013799,2]
[335390595,1724178649506,-1380.98,0.00013799,2]
[335390597,1724178649517,-220.930582,0.00013799,2]
[335390599,1724178649529,-220.930582,0.00013799,2]
[335390601,1724178649539,-151.0,0.00013799,2]
[335390603,1724178649552,-500.0,0.00013799,2]
[335390605,1724178649562,-419.279605,0.00013799,2]
[335390607,1724178649571,-254.84148,0.00013799,2]
[335390610,1724178649581,-419.279605,0.00013799,2]
[335390612,1724178649591,-254.84148,0.00013799,2]
[335390614,1724178649601,-165.071415,0.00013799,2]
[335390616,1724178649611,-165.071415,0.00013799,2]
[335390618,1724178649621,-500.0,0.00013799,2]
[335390620,1724178649631,-500.0,0.00013799,2]
[335390622,1724178649641,-407.50485,0.00013799,2]
[335390624,1724178649651,-407.50485,0.00013799,2]
[335390626,1724178649662,-152.080004,0.00013799,2]
[335390628,1724178649672,-500.0,0.00013799,2]
[335390630,1724178649683,-151.0,0.00013799,2]
[335390632,1724178649694,-155.340188,0.00013799,2]
[335390634,1724178649704,-206.167617,0.00013799,2]
[335390636,1724178649715,-155.340188,0.00013799,2]
[335390638,1724178649725,-500.0,0.00013799,2]
[335390640,1724178649734,-500.0,0.00013799,2]
[335390642,1724178649744,-500.0,0.00013799,2]
[335390644,1724178649754,-513.776151,0.00013799,2]
[335390646,1724178649763,-151.0,0.00013799,2]
[335390648,1724178649773,-513.776151,0.00013799,2]
[335390650,1724178649782,-500.0,0.00013799,2]
[335390652,1724178649791,-151.0,0.00013799,2]
[335390654,1724178649803,-500.0,0.00013799,2]
[335390656,1724178649812,-191.063225,0.00013799,2]
[335390658,1724178649822,-191.063225,0.00013799,2]
[335390659,1724178649831,-500.0,0.00013799,2]
[335390661,1724178649841,-1432.25,0.00013799,2]
[335390663,1724178649850,-500.0,0.00013799,2]
[335390665,1724178649859,-500.0,0.00013799,2]
[335390667,1724178649869,-382.7861196,0.00013799,2]
[335390669,1724178649881,-117.2138804,0.00013799,2]
[335390671,1724178649891,-500.0,0.00013799,2]
[335390673,1724178649901,-333.60055051,0.00013799,2]
[335390674,1724178649912,-166.39944949,0.00013799,2]
[335390675,1724178649922,-204.68064419,0.00013799,2]
[335390877,1724179024587,313.43,9.84e-05,2]
[335390878,1724179139231,-300.0,0.00010199,2]
[335390879,1724179139252,-11170.0,0.000102,5]
[335390880,1724179219612,-328.0,0.000102,5]
[335390882,1724179515610,316.79,9.607e-05,2]
[335390893,1724179831737,-156.84880486,0.00010009,2]
[335390894,1724179831747,-15483.10746637,0.00010713,2]
[335390895,1724179831757,-150.0,0.00010822,2]
[335390896,1724179831766,-456.76403211,0.00010843,2]
[335390897,1724179831776,-456.76403211,0.00010844,2]
[335390898,1724179831786,-456.76403211,0.00010846,2]
[335390899,1724179831795,-456.76403211,0.0001085,2]
[335390900,1724179831805,-300.0,0.00010851,2]
[335390901,1724179831815,-456.76403211,0.00010852,2]
[335390902,1724179831824,-456.76403211,0.00010854,2]
[335390903,1724179831834,-456.76403211,0.00010859,2]
[335390904,1724179831843,-456.76403211,0.0001087,2]
[335390905,1724179831852,-225.0512,0.000109,2]
[335390906,1724179831862,-623.43,0.000109,2]
[335390907,1724179831872,-438.08,0.000109,2]
[335390908,1724179831882,-455.63,0.000109,2]
[335390909,1724179831892,-151.94,0.00010959,2]
[335390910,1724179831902,-233.51,0.00010959,2]
[335390911,1724179831912,-204.78795136,0.00010959,2]
[335390912,1724179831922,-3875.44196721,0.00010989,2]
[335390913,1724179831933,-3938.63601073,0.00010989,2]
[335390914,1724179831943,-150.0,0.00010998,2]
[335390915,1724179831952,-1174.16,0.00010999,2]
[335390916,1724179831962,-500.0,0.00010999,2]
[335390917,1724179831971,-500.0,0.00010999,2]
[335390918,1724179831981,-2421.97,0.00010999,2]
[335390919,1724179831991,-500.0,0.00010999,2]
[335390920,1724179832002,-500.0,0.00010999,2]
[335390921,1724179832012,-500.0,0.00010999,2]
[335390922,1724179832031,-500.0,0.00010999,2]
[335390923,1724179832040,-500.0,0.00010999,2]
[335390924,1724179832050,-500.0,0.00010999,2]
[335390925,1724179832060,-500.0,0.00010999,2]
[335390927,1724179832070,-500.0,0.00010999,2]
[335390928,1724179832080,-500.0,0.00010999,2]
[335390929,1724179832089,-500.0,0.00010999,2]
[335390931,1724179832098,-500.0,0.00010999,2]
[335390933,1724179832108,-500.0,0.00010999,2]
[335390935,1724179832117,-500.0,0.00010999,2]
[335390937,1724179832126,-500.0,0.00010999,2]
[335390939,1724179832136,-152.69,0.00011,2]